fUSD/lending_fUSD_20260320
["ID","MTS","AMOUNT","RATE_DAILY","PERIOD"]
[408646972,1774044650631,-200.0,0.00038453,2]
[408646973,1774044650641,-200.0,0.00038453,2]
[408646974,1774044650650,-200.0,0.00038453,2]
[408646975,1774044650659,-800.0,0.00038453,13]
[408646976,1774044650668,-800.0,0.00038453,13]
[408646977,1774044650678,-800.0,0.00038453,13]
[408646978,1774044650687,-800.0,0.00038453,13]
[408646979,1774044650696,-800.0,0.00038453,13]
[408646980,1774044650707,-800.0,0.00038453,13]
[408646981,1774044650717,-800.0,0.00038453,13]
[408646982,1774044650736,-800.0,0.00038453,13]
[408646983,1774044650746,-800.0,0.00038453,13]
[408646984,1774044650756,-800.0,0.00038453,13]
[408646985,1774044650767,-159.0,0.00038498,30]
[408646986,1774044650777,-250.48241457,0.00038523,65]
[408646987,1774044650787,-175.37765511,0.00038561,66]
[408646988,1774044650797,-820.335,0.00038686,52]
[408646989,1774044650807,-496.08359529,0.00038908,66]
[408646990,1774044650816,-1131.0,0.00039,7]
[408646991,1774044650826,-745.80245176,0.00039615,68]
[408646992,1774044650836,-152.85496334,0.00039712,120]
[408646993,1774044650846,-274.11438031,0.00039788,2]
[408646994,1774044650855,-489.8907915,0.00039814,2]
[408646995,1774044650866,-154.99,0.0003986,2]
[408646996,1774044650875,-505.0,0.0003998,25]
[408646997,1774044650887,-151.0,0.00039997,14]
[408646998,1774044650901,-1335.82,0.0004,84]
[408646999,1774044650911,-1335.82,0.0004,84]
[408647000,1774044650922,-1335.82,0.0004,84]
[408647001,1774044650932,-1335.82,0.0004,84]
[408647002,1774044650942,-1335.82,0.0004,84]
[408647003,1774044650954,-1335.82,0.0004,84]
[408647004,1774044650966,-1335.82,0.0004,84]
[408647005,1774044650976,-1335.82,0.0004,84]
[408647006,1774044650986,-1335.82,0.0004,84]
[408647007,1774044650995,-1335.82,0.0004,84]
[408647008,1774044651005,-1335.82,0.0004,84]
[408647009,1774044651016,-1335.82,0.0004,84]
[408647010,1774044651026,-1335.82,0.0004,84]
[408647011,1774044651036,-1335.82,0.0004,84]
[408647012,1774044651046,-1335.82,0.0004,84]
[408647013,1774044651055,-1335.82,0.0004,84]
[408647014,1774044651065,-1335.82,0.0004,84]
[408647015,1774044651074,-1335.82,0.0004,84]
[408647016,1774044651084,-1335.82,0.0004,84]
[408647017,1774044651094,-1335.82,0.0004,84]
[408647018,1774044651105,-1335.82,0.0004,84]
[408647019,1774044651114,-1335.82,0.0004,84]
[408647020,1774044651124,-1335.82,0.0004,84]
[408647021,1774044651134,-1335.82,0.0004,84]
[408647022,1774044651144,-1335.82,0.0004,84]
[408647023,1774044651153,-1335.82,0.0004,84]
[408647024,1774044651163,-1335.82,0.0004,84]
[408647025,1774044651172,-1335.82,0.0004,84]
[408647026,1774044651182,-1335.82,0.0004,84]
[408647027,1774044651191,-1335.52129565,0.0004,84]
[408647028,1774044651202,-30863.12084941,0.0004,120]
[408647029,1774044651212,-19228.02470509,0.0004,120]
[408647030,1774044651233,-583.77746727,0.0004,120]
[408647031,1774044651245,-965.38560138,0.0004,120]
[408647032,1774044651256,-1073.3427784,0.0004,120]
[408647074,1774045831388,-700.0,0.00011507,2]
[408647075,1774045831398,-2500.41564869,0.00011507,2]
[408647076,1774045831447,-385.00293256,0.00011507,2]
[408647077,1774045831566,-302.18492085,0.00011507,2]
[408647078,1774045831577,-636.77253227,0.00011507,2]
[408647079,1774045831588,-303.8818997,0.00011507,2]
[408647093,1774045837572,-871.74206593,0.00011507,2]
[408647095,1774045837582,-682.60142382,0.00011847,2]
[408647096,1774045837591,-1200.0,0.00012657,2]
[408647097,1774045837601,-3866.53574954,0.00012658,2]
[408647098,1774045837612,-754.07848955,0.00012658,2]
[408647099,1774045837623,-379.38576091,0.00012658,2]
[408647100,1774045837632,-505.0,0.000133,2]
[408647101,1774045837643,-503.0,0.000133,2]
[408647102,1774045837654,-53.41403909,0.00013367,2]
[408647103,1774045837665,-307.92957538,0.00013367,2]
[408647104,1774045837676,-147.04513532,0.00013367,2]
[408647105,1774045837686,-500.0,0.00013367,2]
[408647106,1774045837695,-500.0,0.00013367,2]
[408647107,1774045837704,-259.8839,0.000138,2]
[408647108,1774045837714,-1000.0,0.00013915,2]
[408647109,1774045837723,-1000.0,0.00013915,2]
[408647110,1774045837733,-1680.0,0.00013922,2]
[408647111,1774045837743,-500.0,0.00014,2]
[408647112,1774045837752,-500.0,0.00014,2]
[408647113,1774045837767,-500.0,0.00014463,2]
[408647114,1774045837777,-500.0,0.00014463,2]
[408647115,1774045837786,-150.0,0.00014529,2]
[408647116,1774045837796,-8600.34689054,0.0001453,2]
[408647118,1774045839625,-75583.67180946,0.0001453,2]
[408647119,1774045839635,-152.52789469,0.00014548,2]
[408647120,1774045839645,-1000.0,0.00014548,2]
[408647121,1774045839654,-200.0,0.00014605,2]
[408647122,1774045839663,-150.0,0.0001461,2]
[408647123,1774045839672,-250.0,0.00015,2]
[408647124,1774045839681,-156.15,0.00015076,2]
[408647125,1774045839690,-500.0,0.00015096,2]
[408647126,1774045839699,-671.0,0.00015314,2]
[408647127,1774045839708,-255.0,0.00015648,2]
[408647128,1774045839717,-152.85496334,0.000159,2]
[408647129,1774045839727,-152.85496334,0.000159,2]
[408647130,1774045839736,-152.85496334,0.000159,2]
[408647131,1774045839745,-19695.36737726,0.000159,2]
[408647132,1774045839754,-223.42333801,0.000159,2]
[408647133,1774045839763,-842.46227978,0.000159,2]
[408647134,1774045839772,-503.4992489,0.000159,2]
[408647135,1774045839781,-1352.884461,0.000159,2]
[408647136,1774045839790,-5000.0,0.0001596,2]
[408647137,1774045839800,-500.0,0.00015973,2]
[408647138,1774045839809,-500.0,0.00015973,2]
[408647139,1774045839818,-500.0,0.00015973,2]
[408647140,1774045839827,-500.0,0.00015973,2]
[408647141,1774045839838,-500.0,0.00015973,2]
[408647142,1774045839847,-500.0,0.00015973,2]
[408647143,1774045839857,-500.0,0.00015973,2]
[408647144,1774045839866,-500.0,0.00015973,2]
[408647145,1774045839876,-504.68685311,0.00015973,2]
[408647146,1774045839885,-500.0,0.00015973,2]
[408647147,1774045839896,-500.0,0.00015973,2]
[408647148,1774045839906,-402.64926485,0.00015973,2]
[408647149,1774045839915,-608.35016937,0.00015973,2]
[408647150,1774045839924,-500.0,0.00015973,2]
[408647151,1774045839934,-500.85471363,0.00015973,2]
[408647152,1774045839943,-500.0,0.00015973,2]
[408647153,1774045839952,-500.0,0.00015973,2]
[408647154,1774045839961,-500.0,0.00015973,2]
[408647155,1774045839970,-500.0,0.00015973,2]
[408647156,1774045839980,-500.0,0.00015973,2]
[408647157,1774045839989,-500.0,0.00015973,2]
[408647158,1774045839998,-500.0,0.00015973,2]
[408647159,1774045840008,-500.0,0.00015973,2]
[408647160,1774045840017,-500.0,0.00015973,2]
[408647161,1774045840027,-500.0,0.00015973,2]
[408647162,1774045840036,-500.0,0.00015973,2]
[408647163,1774045840045,-568.59421124,0.00015973,2]
[408647164,1774045840054,-500.0,0.00015973,2]
[408647165,1774045840063,-500.0,0.00015973,2]
[408647166,1774045840072,-559.51188166,0.00015973,2]
[408647167,1774045840081,-191.71448906,0.00015973,2]
[408647168,1774045840090,-500.0,0.00015973,2]
[408647169,1774045840100,-384.34451026,0.0001599,2]
[408647170,1774045840109,-384.34451026,0.0001599,2]
[408647171,1774045840117,-384.34451026,0.0001599,2]
[408647172,1774045840126,-151.0,0.0001599,2]
[408647173,1774045840136,-151.0,0.0001599,2]
[408647174,1774045840145,-151.0,0.0001599,2]
[408647175,1774045840154,-151.0,0.0001599,2]
[408647176,1774045840163,-151.0,0.0001599,2]
[408647178,1774045840172,-151.0,0.0001599,2]
[408647179,1774045840181,-151.0,0.0001599,2]
[408647180,1774045840190,-603.6,0.00015999,2]
[408647181,1774045840199,-620.58701677,0.00015999,2]
[408647182,1774045840210,-300.0,0.00015999,2]
[408647183,1774045840223,-500.0,0.00015999,2]
[408647184,1774045840232,-453.83165344,0.00015999,2]
[408647185,1774045840241,-500.0,0.00015999,2]
[408647186,1774045840249,-500.0,0.00015999,2]
[408647187,1774045840258,-500.0,0.00015999,2]
[408647188,1774045840266,-278.60140382,0.00015999,2]
[408647189,1774045840274,-6234474.25891045,0.00016,2]
[408647197,1774045842482,-3411.57817406,0.00016,2]
[408647198,1774045842606,-50469.33986642,0.00016,2]
[408647199,1774045842620,-1012782.4395526,0.00016,2]
[408647206,1774045845365,-735.66543142,0.000159,2]
[408647207,1774045845375,-23263.89331101,0.00016,2]
[408647208,1774045845480,-4005.44914604,0.00016,2]
[408647209,1774045845491,-6160.09076886,0.00016,2]
[408647214,1774045946817,-500.0,0.0004718,120]
[408647215,1774045946841,-207.81,0.0004718,120]
[408647216,1774045946866,-4620.75650682,0.0004718,120]
[408647217,1774045946889,-4311.24554513,0.0004718,30]
[408647218,1774045946913,-2222.00049028,0.0004718,120]
[408647219,1774045946937,-500.0,0.0004718,120]
[408647220,1774045946962,-500.0,0.0004718,120]
[408647221,1774045946986,-500.0,0.0004718,120]
[408647222,1774045947010,-500.0,0.0004718,120]
[408647223,1774045947036,-5000.0,0.0004718,120]
[408647224,1774045947062,-554.48222064,0.0004718,120]
[408647225,1774045947089,-50000.0,0.0004718,41]
[408647226,1774045947115,-50000.0,0.0004718,44]
[408647227,1774045947142,-50000.0,0.0004718,45]
[408647228,1774045947168,-50000.0,0.0004718,49]
[408647229,1774045947193,-50000.0,0.0004718,50]
[408647230,1774045947219,-152182.07270901,0.0004718,30]
[408647231,1774045947247,-5534.62275498,0.0004718,120]
[408647232,1774045947271,-29997.99387822,0.0004718,30]
[408647233,1774045947297,-150334.79259254,0.0004718,120]
[408647234,1774045947324,-5000.0,0.0004718,90]
[408647235,1774045947347,-5000.0,0.0004718,120]
[408647236,1774045947372,-4328.7,0.0004718,30]
[408647237,1774045947397,-184245.00685099,0.0004718,120]
[408647238,1774045947421,-200990.97965592,0.0004718,120]
[408647239,1774045947446,-13442.0612233,0.0004718,120]
[408647240,1774045947471,-50000.0,0.0004718,51]
[408647241,1774045947495,-325608.88751316,0.0004718,120]
[408647242,1774045947519,-50000.0,0.0004718,77]
[408647243,1774045947542,-60512.56913881,0.0004718,60]
[408647244,1774045947565,-1000.0,0.0004718,40]
[408647245,1774045947589,-1000.0,0.0004718,50]
[408647246,1774045947612,-16000.000158,0.0004718,30]
[408647247,1774045947636,-50033.70920205,0.0004718,60]
[408647248,1774045947660,-2738.0,0.0004718,120]
[408647249,1774045947684,-125081.87690856,0.0004718,30]
[408647250,1774045947709,-386610.04514861,0.0004718,30]
[408647251,1774045947734,-15244.85658084,0.0004718,120]
[408647252,1774045947759,-451500.0,0.0004718,30]
[408647253,1774045947784,-40000.0,0.0004718,120]
[408647254,1774045947810,-3404197.53092214,0.0004718,120]
[408647255,1774045952103,-6000000.0,0.0004718,120]
[408647256,1774045955919,-6000000.0,0.0004718,120]
[408647258,1774045965226,-6000000.0,0.0004718,120]
[408647259,1774045969178,-5686792.66907786,0.0004718,120]
[408647260,1774045969207,-313207.33092214,0.0004718,90]
[408647261,1774045972876,-686792.66907786,0.0004718,90]
[408647262,1774045972901,-8571.65335376,0.0004718,60]
[408647263,1774045972926,-20908.72322745,0.0004718,60]
[408647264,1774045972954,-1918.64210127,0.0004718,30]
[408647265,1774045972978,-5000.0,0.0004718,90]
[408647266,1774045973002,-100000.0,0.0004718,120]
[408647267,1774045973027,-3000.0,0.0004718,30]
[408647268,1774045973051,-13861.0,0.0004718,120]
[408647269,1774045973076,-100000.0,0.0004718,120]
[408647270,1774045973101,-100000.0,0.0004718,120]
[408647271,1774045973125,-100000.0,0.0004718,120]
[408647272,1774045973151,-100000.0,0.0004718,120]
[408647273,1774045973180,-100000.0,0.0004718,120]
[408647274,1774045973205,-1806.38572049,0.0004718,120]
[408647275,1774045973230,-1487971.13740366,0.0004718,30]
[408647276,1774045973257,-21148.61268137,0.0004718,120]
[408647277,1774045973284,-50000.0,0.0004718,53]
[408647278,1774045973310,-50000.0,0.0004718,54]
[408647279,1774045973336,-50000.0,0.0004718,60]
[408647280,1774045973360,-100000.0,0.0004718,60]
[408647281,1774045973384,-169999.99999984,0.0004718,30]
[408647282,1774045973411,-39545.14866375,0.0004718,30]
[408647283,1774045973436,-1106546.44864137,0.0004718,120]
[408647284,1774045973463,-50000.0,0.0004718,55]
[408647285,1774045973489,-50000.0,0.0004718,56]
[408647286,1774045973514,-50000.0,0.0004718,57]
[408647287,1774045973540,-1721.96822714,0.0004718,120]
[408647288,1774045973565,-2092.36150227,0.0004718,35]
[408647289,1774045973588,-714.35423156,0.0004718,120]
[408647290,1774045973613,-9128.51,0.0004718,120]
[408647291,1774045973639,-5000.0,0.0004718,38]
[408647292,1774045973664,-5000.0,0.0004718,120]
[408647293,1774045973688,-4900.0,0.0004718,120]
[408647294,1774045973713,-600.0,0.0004718,120]
[408647295,1774045973739,-5000.0,0.0004718,31]
[408647296,1774045973764,-10000.0,0.0004718,120]
[408647297,1774045973790,-9999.91,0.0004718,120]
[408647298,1774045973815,-10000.0,0.0004718,120]
[408647299,1774045973841,-50000.0,0.0004718,58]
[408647300,1774045973873,-20000.0,0.0004718,120]
[408647301,1774045973903,-20000.0,0.0004718,120]
[408647302,1774045973928,-20000.0,0.0004718,120]
[408647303,1774045973952,-20000.0,0.0004718,120]
[408647304,1774045973978,-20000.0,0.0004718,120]
[408647305,1774045974004,-20000.0,0.0004718,120]
[408647306,1774045974030,-20000.0,0.0004718,120]
[408647307,1774045974056,-20000.0,0.0004718,120]
[408647308,1774045974082,-20000.0,0.0004718,120]
[408647309,1774045974106,-20000.0,0.0004718,120]
[408647310,1774045974130,-20000.0,0.0004718,120]
[408647311,1774045974154,-13201.89958799,0.0004718,120]
[408647312,1774045974177,-16599.0,0.0004718,120]
[408647313,1774045974201,-216.69658219,0.0004718,66]
[408647314,1774045974226,-400040.47978487,0.0004718,120]
[408647315,1774045974252,-25000.0,0.0004718,120]
[408647316,1774045974502,-296.0,0.0004718,120]
[408647317,1774045974527,-549.0,0.0004718,30]
[408647318,1774045974549,-165.99953529,0.0004718,120]
[408647319,1774045974573,-306.57051433,0.0004718,120]
[408647320,1774045974596,-265.0,0.0004718,120]
[408647321,1774045974619,-2696.7687564,0.0004718,120]
[408647322,1774045974642,-292.57468404,0.0004718,60]
[408647323,1774045974666,-43004.0,0.0004718,120]
[408647324,1774045974691,-10107.0,0.0004718,120]
[408647325,1774045974715,-50000.0,0.0004718,60]
[408647326,1774045974741,-50000.0,0.0004718,30]
[408647327,1774045974767,-50000.0,0.0004718,30]
[408647328,1774045974793,-50000.0,0.0004718,60]
[408647329,1774045974817,-50000.0,0.0004718,60]
[408647330,1774045974841,-50000.0,0.0004718,30]
[408647331,1774045974865,-1234.46500717,0.0004718,120]
[408647332,1774045974889,-65124.0,0.0004718,30]
[408647333,1774045974913,-194.94949837,0.0004718,30]
[408647334,1774045974936,-14753.93463593,0.0004718,120]
[408647335,1774045974959,-20000.0,0.0004718,30]
[408647336,1774045974984,-159.73460327,0.0004718,30]
[408647337,1774045975010,-181.87583695,0.0004718,120]
[408647338,1774045975033,-174.52980849,0.0004718,60]
[408647339,1774045975057,-151.20067154,0.0004718,30]
[408647340,1774045975082,-159.65336557,0.0004718,30]
[408647341,1774045975105,-176.80433886,0.0004718,120]
[408647342,1774045975129,-11560.23854627,0.0004718,90]
[408647343,1774045975152,-1337.58151292,0.0004718,120]
[408647344,1774045975176,-221.0,0.0004718,120]
[408647345,1774045975199,-1022.3853857,0.0004718,120]
[408647346,1774045975222,-223.0,0.0004718,120]
[408647347,1774045975247,-100000.0,0.0004718,30]
[408647348,1774045975270,-5000.0,0.0004718,120]
[408647349,1774045975294,-5000.0,0.0004718,120]
[408647350,1774045975318,-5000.0,0.0004718,120]
[408647351,1774045975341,-5000.0,0.0004718,120]
[408647352,1774045975364,-1000.0,0.0004718,120]
[408647353,1774045975386,-1000.0,0.0004718,120]
[408647354,1774045975410,-1000.0,0.0004718,120]
[408647355,1774045975432,-1000.0,0.0004718,120]
[408647356,1774045975455,-1000.0,0.0004718,120]
[408647357,1774045975478,-1000.0,0.0004718,120]
[408647358,1774045975500,-1000.0,0.0004718,120]
[408647359,1774045975523,-1000.0,0.0004718,120]
[408647360,1774045975546,-1000.0,0.0004718,120]
[408647361,1774045975568,-1055.89,0.0004718,120]
[408647362,1774045975590,-10000.0,0.0004718,120]
[408647363,1774045975612,-1100.0,0.0004718,60]
[408647364,1774045975634,-467.42,0.0004718,120]
[408647365,1774045975658,-901.63359869,0.0004718,120]
[408647366,1774045975681,-227.864491,0.0004718,120]
[408647367,1774045975704,-26603.32442237,0.0004718,120]
[408647368,1774045982850,-29264.97444386,0.0004718,120]
[408647369,1774045982875,-2275.50979239,0.0004718,30]
[408647370,1774045982900,-10000.0,0.0004718,120]
[408647371,1774045982923,-2429.55194491,0.0004718,120]
[408647372,1774045982947,-10001.0,0.0004718,30]
[408647373,1774045982971,-2081.71896231,0.0004718,30]
[408647374,1774045982995,-272.64022106,0.0004718,120]
[408647375,1774045983023,-23787.70050046,0.0004718,120]
[408647376,1774045983047,-200.0,0.0004718,120]
[408647377,1774045983071,-200.0,0.0004718,120]
[408647378,1774045983094,-213.22,0.0004718,120]
[408647379,1774045983118,-160.4594113,0.0004718,120]
[408647380,1774045983142,-40514.25,0.0004718,120]
[408647381,1774045983167,-177.84244652,0.0004718,30]
[408647382,1774045983191,-100000.0,0.0004718,120]
[408647383,1774045983215,-100000.0,0.0004718,120]
[408647384,1774045983244,-150000.0,0.0004718,120]
[408647385,1774045983270,-50000.0,0.0004718,120]
[408647386,1774045983295,-396.32437,0.0004718,120]
[408647387,1774045983319,-6107.02262485,0.0004718,120]
[408647388,1774045983343,-500.0,0.0004718,120]
[408647389,1774045983367,-500.0,0.0004718,120]
[408647390,1774045983390,-500.0,0.0004718,120]
[408647391,1774045983415,-500.0,0.0004718,120]
[408647392,1774045983440,-500.0,0.0004718,120]
[408647393,1774045983466,-500.0,0.0004718,120]
[408647394,1774045983489,-500.0,0.0004718,120]
[408647395,1774045983512,-500.0,0.0004718,120]
[408647396,1774045983536,-500.0,0.0004718,120]
[408647397,1774045983560,-500.0,0.0004718,120]
[408647398,1774045983584,-500.0,0.0004718,120]
[408647399,1774045983776,-500.0,0.0004718,120]
[408647400,1774045983803,-500.0,0.0004718,120]
[408647401,1774045983839,-500.0,0.0004718,120]
[408647402,1774045983866,-500.0,0.0004718,120]
[408647403,1774045983892,-500.0,0.0004718,120]
[408647404,1774045983918,-500.0,0.0004718,120]
[408647405,1774045983942,-500.0,0.0004718,120]
[408647406,1774045983967,-500.0,0.0004718,120]
[408647407,1774045983991,-500.0,0.0004718,120]
[408647408,1774045984015,-338.58624698,0.0004718,120]
[408647409,1774045984039,-117927.45531407,0.0004718,48]
[408647410,1774045984063,-300.0,0.0004718,30]
[408647411,1774045984088,-863.48580027,0.0004718,120]
[408647412,1774045984113,-298.6767626,0.0004718,120]
[408647413,1774045984138,-15746.15631013,0.0004718,60]
[408647414,1774045984163,-4294.07895906,0.0004718,60]
[408647415,1774045984190,-136114.27,0.0004718,120]
[408647416,1774045984216,-46930.0,0.0004718,120]
[408647417,1774045984246,-30000.0,0.0004718,120]
[408647418,1774045984272,-52727.03893506,0.0004718,30]
[408647419,1774045984299,-10770.0,0.0004718,120]
[408647420,1774045984324,-15539.4969383,0.0004718,120]
[408647421,1774045984348,-3143.83220318,0.0004718,120]
[408647422,1774045984372,-52376.20132898,0.0004718,120]
[408647423,1774045984396,-300000.0,0.0004718,60]
[408647424,1774045984420,-300000.0,0.0004718,60]
[408647425,1774045984445,-300000.0,0.0004718,60]
[408647426,1774045984474,-300000.0,0.0004718,60]
[408647427,1774045984499,-300000.0,0.0004718,60]
[408647428,1774045984525,-300000.0,0.0004718,60]
[408647429,1774045984551,-300000.0,0.0004718,60]
[408647430,1774045984575,-300000.0,0.0004718,60]
[408647431,1774045984601,-300000.0,0.0004718,60]
[408647432,1774045984626,-220318.633243,0.0004718,60]
[408647433,1774045984651,-130057.46,0.0004718,30]
[408647434,1774045984676,-5000.0,0.0004718,30]
[408647435,1774045984701,-2513.0,0.0004718,30]
[408647436,1774045984726,-5000.0,0.0004718,120]
[408647437,1774045984750,-2513.0,0.0004718,120]
[408647438,1774045984774,-7014.14645715,0.0004718,120]
[408647439,1774045984797,-7112.7497914,0.0004718,30]
[408647440,1774045984822,-6566.61059231,0.0004718,30]
[408647441,1774045984846,-5057.04759761,0.0004718,30]
[408647442,1774045984870,-21327.9768206,0.0004718,30]
[408647443,1774045984896,-40586.01898133,0.0004718,30]
[408647444,1774045984921,-20791.31944508,0.0004718,30]
[408647445,1774045984946,-84173.52197813,0.0004718,120]
[408647446,1774045984975,-32434.11068432,0.0004718,30]
[408647447,1774045985001,-5147.0,0.0004718,120]
[408647448,1774045985026,-5000.0,0.0004718,60]
[408647449,1774045985050,-26547.09844829,0.0004718,30]
[408647450,1774045985076,-1010812.39673111,0.0004718,30]
[408647451,1774045985100,-30953.36293348,0.0004718,30]
[408647452,1774045985126,-10329.90344143,0.0004718,30]
[408647453,1774045985151,-6147.9639884,0.0004718,30]
[408647454,1774045985175,-11479.77453724,0.0004718,30]
[408647455,1774045985199,-577665.41081283,0.0004718,30]
[408647456,1774045989056,-385341.13446337,0.0004718,30]
[408647457,1774045989087,-15763.52414654,0.0004718,30]
[408647458,1774045989116,-76533.49204968,0.0004718,30]
[408647459,1774045989145,-1346377.3544918,0.0004718,30]
[408647460,1774045989175,-10289.15443464,0.0004718,30]
[408647461,1774045989204,-5487.40020936,0.0004718,30]
[408647462,1774045989237,-5318.18116731,0.0004718,30]
[408647463,1774045989272,-89999.999994,0.0004718,30]
[408647464,1774045989301,-28367.25916829,0.0004718,30]
[408647465,1774045989336,-16160.52932508,0.0004718,30]
[408647466,1774045989366,-4292.65450591,0.0004718,30]
[408647467,1774045989397,-587647.52310648,0.0004718,30]
[408647468,1774045989427,-53149.31537927,0.0004718,30]
[408647469,1774045989456,-40229.02161684,0.0004718,30]
[408647470,1774045989485,-9722.05329288,0.0004718,30]
[408647471,1774045989517,-4044.41455695,0.0004718,30]
[408647472,1774045989552,-153488.64872594,0.0004718,30]
[408647473,1774045989585,-15063.88651659,0.0004718,30]
[408647474,1774045989615,-14114.67118524,0.0004718,30]
[408647475,1774045989646,-4682.99954915,0.0004718,30]
[408647476,1774045989677,-9435.16831389,0.0004718,30]
[408647477,1774045989706,-106729.09191662,0.0004718,30]
[408647478,1774045989735,-8826.79207235,0.0004718,30]
[408647479,1774045989764,-4040.69056018,0.0004718,30]
[408647480,1774045989798,-3812.63957965,0.0004718,30]
[408647481,1774045989832,-2003543.77695563,0.0004718,30]
[408647482,1774045989860,-14675.07377092,0.0004718,30]
[408647483,1774045989890,-15380.58996908,0.0004718,30]
[408647484,1774045989920,-6046.2456622,0.0004718,30]
[408647485,1774045989945,-45088.07010906,0.0004718,30]
[408647486,1774045989972,-700851.75674789,0.0004718,120]
[408647487,1774045990003,-6792.36530521,0.0004718,30]
[408647488,1774045990034,-72597.77286531,0.0004718,30]
[408647489,1774045990059,-10775.25379611,0.0004718,30]
[408647490,1774045990084,-125331.49449058,0.0004718,30]
[408647491,1774045993407,-1552158.1785037,0.0004718,30]
[408647492,1774045993435,-316254.63454506,0.0004718,30]
[408647493,1774045993463,-5663.35412656,0.0004718,30]
[408647494,1774045993491,-4193.04027555,0.0004718,30]
[408647495,1774045993518,-223090.64061375,0.0004718,30]
[408647496,1774045993544,-837399.6315572,0.0004718,30]
[408647497,1774045993571,-30000.0,0.0004718,30]
[408647498,1774045993599,-1500000.0,0.0004718,30]
[408647499,1774045993626,-500000.0,0.0004718,45]
[408647500,1774045993654,-500000.0,0.0004718,60]
[408647501,1774045993681,-500000.0,0.0004718,55]
[408647502,1774045993707,-31240.52037818,0.0004718,50]
[408647504,1774046002638,-468759.47962182,0.0004718,50]
[408647505,1774046002664,-500000.0,0.0004718,40]
[408647506,1774046002690,-455527.13,0.0004718,35]
[408647507,1774046002714,-210000.0,0.0004718,30]
[408647508,1774046002740,-7114.46330807,0.0004718,120]
[408647509,1774046002765,-248.62202042,0.0004718,120]
[408647510,1774046002789,-20287.0,0.0004718,120]
[408647511,1774046002815,-545.67209478,0.0004718,120]
[408647512,1774046002839,-11814.66982438,0.0004718,120]
[408647513,1774046002864,-300.0,0.0004718,120]
[408647514,1774046002888,-5000.0,0.0004718,30]
[408647515,1774046002912,-1000000.0,0.0004718,60]
[408647516,1774046002936,-735544.0,0.0004718,90]
[408647517,1774046002961,-2664.0,0.0004718,45]
[408647518,1774046002986,-166573.30800001,0.0004718,120]
[408647519,1774046003010,-944.71134148,0.0004718,120]
[408647520,1774046003034,-5000.0,0.0004718,37]
[408647521,1774046003059,-38746.64845015,0.0004718,30]
[408647522,1774046003083,-4068.59113591,0.0004718,30]
[408647523,1774046003108,-153602.02686248,0.0004718,60]
[408647524,1774046003136,-5821.5,0.0004718,30]
[408647525,1774046003163,-50000.0,0.0004718,59]
[408647526,1774046003188,-50000.0,0.0004718,60]
[408647527,1774046003214,-50000.0,0.0004718,61]
[408647528,1774046003240,-50000.0,0.0004718,62]
[408647529,1774046003267,-50000.0,0.0004718,63]
[408647530,1774046003294,-50000.0,0.0004718,64]
[408647531,1774046003319,-50000.0,0.0004718,65]
[408647532,1774046003345,-50000.0,0.0004718,66]
[408647533,1774046003377,-50000.0,0.0004718,67]
[408647534,1774046003402,-50000.0,0.0004718,68]
[408647535,1774046003428,-50000.0,0.0004718,69]
[408647536,1774046003451,-8544.98,0.0004718,120]
[408647537,1774046003476,-200.0,0.0004718,120]
[408647538,1774046003500,-8082.47977073,0.0004718,30]
[408647539,1774046003524,-92148.30340566,0.0004718,120]
[408647540,1774046003549,-70760.29490634,0.0004718,120]
[408647541,1774046003573,-28632.15473148,0.0004718,120]
[408647542,1774046003598,-14924.29022003,0.0004718,120]
[408647543,1774046003623,-10279.06337252,0.0004718,120]
[408647544,1774046003647,-20000.0,0.0004718,30]
[408647545,1774046003673,-20000.0,0.0004718,30]
[408647546,1774046003697,-20000.0,0.0004718,30]
[408647547,1774046003721,-20000.0,0.0004718,30]